Workbook

Sheet Facturier d'Entrées
A1: FACTURIER DES ACHATS | D1: Total facture + ou note crédit - avec TVA % | F1: Trimestre 1. | H1: NET de TVA | L1: BE | O1: Total de contrôle
A2: Date | B2: N° | C2: Fournisseurs | E2: 00 06 21 | F2: Total TVA | G2: Total sans TVA | H2: Marchandises | I2: Frais | J2: Invest. | K2: Privé | L2: TVA non récupérable | M2: TVA récupérable
H3: 81 | I3: 82 | J3: 83 | M3: 59
A4: 2020-06-12 | B4: 1 | C4: Machin | D4: 1000 | E4: 21 | F4: =D4-G4 -> 173.553719 | G4: =IF(E4=21,D4/1.21,IF(E4=6,D4/1.06,D4/1)) -> 826.446281 | H4: 826.45 | L4: =F4-M4 -> 0.003719008264 | M4: 173.55 | O4: =H4+I4+J4+K4+L4+M4 -> 1000.003719
B5: 2 | C5: Chose | D5: 500 | E5: 6 | F5: =D5-G5 -> 28.30188679 | G5: =IF(E5=21,D5/1.21,IF(E5=6,D5/1.06,D5/1)) -> 471.6981132 | J5: 471.7 | L5: =F5-M5 -> 14.15188679 | M5: 14.15 | O5: =H5+I5+J5+K5+L5+M5 -> 500.0018868
B6: 3 | C6: Proximus | D6: 187 | E6: 21 | F6: 32.45454545 | G6: 154.5454545 | I6: 154.55 | L6: 0.004545454545 | M6: 32.45 | O6: 187.0045455
B7: 4 | C7: Brico | D7: 65 | E7: 21 | F7: 11.28099174 | G7: 53.71900826 | K7: 53.72 | L7: 11.28099174 | M7: 0 | O7: 65.00099174
F8: 0 | G8: 0 | L8: 0 | O8: 0
F9: 0 | G9: 0 | L9: 0 | O9: 0
F10: 0 | G10: 0 | L10: 0 | O10: 0
F11: 0 | G11: 0 | L11: 0 | O11: 0
L12: 0 | O12: 0
L13: 0 | O13: 0
L14: 0 | O14: 0
L15: 0 | O15: 0
L16: 0 | O16: 0
L17: 0 | O17: 0
L18: 0 | O18: 0
L19: 0 | O19: 0
L20: 0 | O20: 0
L21: 0 | O21: 0
L22: 0 | O22: 0
L23: 0 | O23: 0
L24: 0 | O24: 0
L25: 0 | O25: 0
L26: 0 | O26: 0
L27: 0 | O27: 0
L28: 0
L29: 0
L30: 0
L31: 0
L32: 0
L33: 0
L34: 0
L35: 0

Sheet CoordonnéesClients
A1: NumClient | B1: Nom | C1: Prénom | D1: Adresse | E1: Code Postal | F1: Localité | G1: N° TVA | H1: Téléphone | I1: GSM | J1: Email
A2: =LEFT(B2,3)&LEFT(C2,1) -> KOUD | B2: KOUSEN | C2: Daniel | D2: rue Buisson à la fleur, 91 | E2: 4537 | F2: Verlaine | G2: BE0752.303.492 | H2: 04/259.45.55 | I2: 0495/23.05.74 | J2: daniel.kousen@skynet.be
A3: =LEFT(B3,3)&LEFT(C3,1) -> ANCF | B3: ANCION | C3: Freddy
A4: =LEFT(B4,3)&LEFT(C4,1) -> BOVE | B4: BOVEROUL | C4: Eric
A5: =LEFT(B5,3)&LEFT(C5,1) -> BUTR | B5: BUTERA | C5: Raphaël
A6: =LEFT(B6,3)&LEFT(C6,1) -> BUTF | B6: BUTERA | C6: Fréderic
A7: =LEFT(B7,3)&LEFT(C7,1) -> CER | B7: CERTINERGIE
A8: =LEFT(B8,3)&LEFT(C8,1) -> CONP | B8: CONING | C8: Patrick
A9: =LEFT(B9,3)&LEFT(C9,1) -> COOP | B9: COONAERT | C9: Philippe
A10: =LEFT(B10,3)&LEFT(C10,1) -> DAOE | B10: DAOUT | C10: Egide | D10: rue Trixhelette, 81 | E10: 4537 | F10: Verlaine | H10: 04/259,43,84
A11: =LEFT(B11,3)&LEFT(C11,1) -> DEBP | B11: DEBECKER | C11: Philippe
A12: =LEFT(B12,3)&LEFT(C12,1) -> DEBL | B12: DEBLIQUIS | C12: Luc
A13: =LEFT(B13,3)&LEFT(C13,1) -> DELP | B13: DELVAUX | C13: Patrick
A14: =LEFT(B14,3)&LEFT(C14,1) -> det | B14: dethioux
A15: =LEFT(B15,3)&LEFT(C15,1) -> DEVH | B15: DEVIGNE | C15: Henry
A16: =LEFT(B16,3)&LEFT(C16,1) -> D'HE | B16: D'HOE | C16: Eric | E16: 4537 | F16: Verlaine
A17: =LEFT(B17,3)&LEFT(C17,1) -> DUCL | B17: DUCHENE | C17: Laurent
A18: =LEFT(B18,3)&LEFT(C18,1) -> DupC | B18: Dupont | C18: Charles | D18: rue du Pont,28 | F18: Villers le Bouillet | G18: N/A | H18: 04/12345678
A19: =LEFT(B19,3)&LEFT(C19,1) -> EVRR | B19: EVRARD | C19: Roland
A20: =LEFT(B20,3)&LEFT(C20,1) -> FEET | B20: FEET | C20: Thomas
A21: =LEFT(B21,3)&LEFT(C21,1) -> FOUS | B21: FOUCART | C21: Sophie
A22: =LEFT(B22,3)&LEFT(C22,1) -> GIAG | B22: GIANQUINTO | C22: Gloria
A23: =LEFT(B23,3)&LEFT(C23,1) -> GRIB | B23: GRINDORGE | C23: Benoit
A24: =LEFT(B24,3)&LEFT(C24,1) -> HALH | B24: HALIN | C24: Hervé
A25: =LEFT(B25,3)&LEFT(C25,1) -> JOLG | B25: JOLLY | C25: Geoffrey
A26: =LEFT(B26,3)&LEFT(C26,1) -> LABD | B26: LABYE | C26: Didier
A27: =LEFT(B27,3)&LEFT(C27,1) -> LAML | B27: LAMBERTY | C27: Lionel
A28: =LEFT(B28,3)&LEFT(C28,1) -> LAMM | B28: LAMBERTY | C28: Maud
A29: =LEFT(B29,3)&LEFT(C29,1) -> LAMA | B29: LAMOUREUX | C29: Alexandre
A30: =LEFT(B30,3)&LEFT(C30,1) -> LECM | B30: LECOMPTE | C30: Michel
A31: =LEFT(B31,3)&LEFT(C31,1) -> LEFA | B31: LEFEBVRE | C31: Alain
A32: =LEFT(B32,3)&LEFT(C32,1) -> LHEL | B32: LHEUREUX | C32: Lionel
A33: =LEFT(B33,3)&LEFT(C33,1) -> LHOA | B33: LHOMME | C33: Alain | D33: rue Basse Marquet, 126 | E33: 4470 | F33: Stockay | G33: BE 0651.346.684 | I33: 0475/50 13 12 | J33: locahomeparty@outlook.be
A34: =LEFT(B34,3)&LEFT(C34,1) -> MARG | B34: MARTINE | C34: Georges
A35: =LEFT(B35,3)&LEFT(C35,1) -> MATC | B35: MATYN | C35: Claude
A36: =LEFT(B36,3)&LEFT(C36,1) -> MHVL | B36: MHVAL | C36: Lise
A37: =LEFT(B37,3)&LEFT(C37,1) -> MOIG | B37: MOISSERON | C37: Gérard
A38: =LEFT(B38,3)&LEFT(C38,1) -> MORC | B38: MORSAINT | C38: Claude | D38: fils
A39: =LEFT(B39,3)&LEFT(C39,1) -> MUSC | B39: MUSIQUE | C39: Catherine
A40: =LEFT(B40,3)&LEFT(C40,1) -> NOV | B40: NOVIAT
A41: =LEFT(B41,3)&LEFT(C41,1) -> PAZG | B41: PAZIENZA | C41: Gauthier
A42: =LEFT(B42,3)&LEFT(C42,1) -> REMA | B42: REMONT | C42: Alain
A43: =LEFT(B43,3)&LEFT(C43,1) -> RIGA | B43: RIGA | C43: André
A44: =LEFT(B44,3)&LEFT(C44,1) -> ROSE | B44: ROSE | C44: Eric
A45: =LEFT(B45,3)&LEFT(C45,1) -> saa | B45: sa | C45: arkos
A46: =LEFT(B46,3)&LEFT(C46,1) -> SAIJ | B46: SAINTE | C46: Jean-Christophe
A47: =LEFT(B47,3)&LEFT(C47,1) -> SAID | B47: SAINTE | C47: Dominique
A48: =LEFT(B48,3)&LEFT(C48,1) -> SAML | B48: SAMSON | C48: Luc
A49: =LEFT(B49,3)&LEFT(C49,1) -> SON | B49: SONVILLE
A50: =LEFT(B50,3)&LEFT(C50,1) -> SOUN | B50: SOUDAIN | C50: Nadine
A51: =LEFT(B51,3)&LEFT(C51,1) -> TOUM | B51: TOURNIQUET | C51: Madame
A52: =LEFT(B52,3)&LEFT(C52,1) -> ULIM | B52: ULIANA | C52: Maxime
A53: =LEFT(B53,3)&LEFT(C53,1) -> VAN | B53: VAN DEN BERGH
A54: =LEFT(B54,3)&LEFT(C54,1) -> WALL | B54: WALLRAF | C54: Lionel
A55: =LEFT(B55,3)&LEFT(C55,1) -> WELP | B55: WELKENHUZEN | C55: Patrick
A56: =LEFT(B56,3)&LEFT(C56,1) -> WOLA | B56: WOLWERTZ | C56: Alain
A57: =LEFT(B57,3)&LEFT(C57,1) -> WUYJ | B57: WUYTS | C57: Jean-Luc

Sheet Facture
E4: 126. rue Basse Marquet
E5: 4470 Saint-Georges-sur-Meuse
E6: Tél : 0475/50 13 12
E7: TVA : BE 0651.346.684
E8: Banque : BE29 1325 5148 6164
A10: FACTURE N° | B10: 192 | D10: Nom : | E10: LHOMME | F10: =IF(E10="","",VLOOKUP(E10,CoordonnéesClients!B2:J97,2,FALSE)) -> Alain
A11: TVA Client : | B11: =IF(VLOOKUP(E10,CoordonnéesClients!B2:G98,6,0)="","N/A",(VLOOKUP(E10,CoordonnéesClients!B2:G98,6,0))) -> BE 0651.346.684 | D11: Adresse : | E11: =IFERROR(VLOOKUP(E10,CoordonnéesClients,3,FALSE),"") -> rue Basse Marquet, 126
A12: DATE : | B12: =TODAY() -> 2023-01-13 | D12: CP+Localité | E12: =IFERROR(VLOOKUP(E10,CoordonnéesClients,4,FALSE),"") -> 4470 | F12: =IFERROR(VLOOKUP(E10,CoordonnéesClients,5,FALSE),"") -> Stockay
D13: Tél : | E13: =(VLOOKUP(E10,CoordonnéesClients,8,FALSE)) -> 0475/50 13 12
A15: Référence | B15: Qtés/Nbre Heures | C15: Désignation | F15: Prix Unit. HTVA | G15: Total HTVA
A16: x4658 | B16: 1 | C16: Déplacement Hotton | F16: 125 | G16: =IF(B16="","",(B16*F16)) -> 125
B17: 6 | C17: Heures prestation | F17: 45 | G17: =IF(B17="","",(B17*F17)) -> 270
A35: Acompte 1 | F35: Total HTVA | G35: =SUM(G16:G34) -> 395
A36: Acompte 2 | F36: TVA 21% | G36: =G35*21% -> 82.95
A37: Acompte 3 | F37: Total TVAC | G37: =G35+G36 -> 477.95
A38: Acompte 4
A39: Solde: | B39: =G37-B35-B36-B37-B38 -> 477.95
A41: CONDITIONS : Les présentes conditions sont applicables à toutes nos livraisons et prestations. Passé le délai de 8 jours plus aucunes contestations ne sra recevable.
A42: Toutes nos factures sont payables au grand comptant. A défaut de paiement, il nous sera dù de plein droit et sans mise en demeure des intérêts conventionnels de 1,5%
A43: par mois depuis la date de la facture avec un montant minimum de 50 EUR. Seuls les tribunaux de Huy sont compétents en cas de litige. Pour tout facture d'un montant
A44: inférieur à 25 EUR; 1,24 EUR seront demandés pour frais administratifs.
A45: GSM: 0475/50.13.12 | E45: Mail: | F45: locahomeparty@outlook,be

Sheet Historique_facture
A1: FACTURE N° | B1: DATE : | C1: Nom : | D1: Prénom : | E1: Adresse : | F1: Code Postal : | G1: Localité: | H1: Tél : | I1: Total HTVA | J1: Total TVAC | K1: facture payée | L1: Date paiement | M1: Solde
A2: Colonne1 | B2: Colonne2 | C2: Colonne3 | D2: Colonne4 | E2: Colonne5 | F2: Colonne6 | G2: Colonne7 | H2: Colonne8 | I2: Colonne9 | J2: Colonne10 | K2: Colonne11 | L2: Colonne12 | M2: Colonne13 | O2: =IF(I3=0,"",IF(J3-K3=0,"",J3-K3)) -> 
A3: 2020/001 | B3: 2020-05-11 | C3: Kousen | D3: Daniel | E3: rue Buisson à la fleur, 91 | F3: 4537 Verlaine | I3: 341 | J3: 412.61 | K3: 412.61 | L3: 2020-05-11 | M3: =IF(I3=0,"",IF(J3-K3=0,"Payé",J3-K3)) -> Payé
A4: 144 | B4: 2020-06-29 | I4: 0 | J4: 0 | M4: =IF(I4=0,"",IF(J4-K4=0,"Payé",J4-K4)) -> 
A5: 173 | B5: 2021-07-11 | C5: KOUSEN | D5: Daniel | E5: rue Buisson à la fleur, 91 | F5: 4537 | G5: Verlaine | H5: 0495/23.05.74 | I5: 2925 | J5: 3539.25 | M5: =IF(I5=0,"",IF(J5-K5=0,"Payé",J5-K5)) -> 3539.25
A6: 174 | B6: 2021-07-11 | C6: KOUSEN | D6: Daniel | E6: rue Buisson à la fleur, 91 | F6: 4537 | G6: Verlaine | H6: 0495/23.05.74 | I6: 1000 | J6: 1210 | M6: 1210
A7: 175 | B7: 2021-07-11 | C7: KOUSEN | D7: Daniel | E7: rue Buisson à la fleur, 91 | F7: 4537 | G7: Verlaine | H7: 0495/23.05.74 | I7: 1200 | J7: 1452 | M7: 1452
A8: 176 | B8: 2021-07-11 | C8: KOUSEN | D8: Daniel | E8: rue Buisson à la fleur, 91 | F8: 4537 | G8: Verlaine | H8: 0495/23.05.74 | I8: 1250 | J8: 1512.5 | M8: 1512.5
A9: 177 | B9: 2021-07-11 | C9: Dupont | D9: Charles | E9: rue du Pont,28 | F9: 0 | G9: Villers le Bouillet | H9: 0 | I9: 1000 | J9: 1210 | M9: 1210
A10: 178 | B10: 2021-07-11 | C10: KOUSEN | D10: Daniel | E10: rue Buisson à la fleur, 91 | F10: 4537 | G10: Verlaine | H10: 0495/23.05.74 | I10: 549.6 | J10: 665.02 | M10: 665.02
A11: 179 | B11: 2021-07-11 | C11: CERTINERGIE | D11: 0 | E11: 0 | F11: 0 | G11: 0 | H11: 0 | I11: 270 | J11: 326.7 | M11: 326.7
A12: 180 | B12: 2021-07-12 | C12: CONING | D12: Patrick | E12: 0 | F12: 0 | G12: 0 | H12: 0 | I12: 750 | J12: 907.5 | M12: 907.5
A13: 181 | B13: 2021-07-12 | C13: BUTERA | D13: Raphaël | E13: 0 | F13: 0 | G13: 0 | H13: 0 | I13: 1542 | J13: 1865.82 | M13: 1865.82
A14: 182 | B14: 2021-07-12 | C14: CONING | D14: Patrick | E14: 0 | F14: 0 | G14: 0 | H14: 0 | I14: 540 | J14: 653.4 | M14: 653.4
A15: 183 | B15: 2021-07-12 | C15: WOLWERTZ | D15: Alain | E15: 0 | F15: 0 | G15: 0 | H15: 0 | I15: 679.8 | J15: 822.56 | M15: 822.56
A16: 184 | B16: 2021-07-12 | C16: KOUSEN | D16: Daniel | E16: rue Buisson à la fleur, 91 | F16: 4537 | G16: Verlaine | H16: 0495/23.05.74 | I16: 311 | J16: 376.31 | M16: 376.31
A17: 185 | B17: 2021-07-12 | C17: LHOMME | D17: Alain | E17: rue Basse Marquet, 126 | F17: 4470 | G17: Stockay | H17: 0475/50 13 12 | I17: 595 | J17: 719.95 | K17: 719.95 | L17: 2021-07-12 | M17: Payé
A18: 186 | B18: 2021-08-18 | C18: KOUSEN | D18: Daniel | E18: rue Buisson à la fleur, 91 | F18: 4537 | G18: Verlaine | H18: 0495/23.05.74 | I18: 780 | J18: 943.8 | M18: 943.8
A19: 187 | B19: 2021-08-18 | I19: 1200 | J19: 1452 | M19: 1452
A20: 187 | B20: 2021-08-18 | I20: 1200 | J20: 1452 | K20: 1000 | M20: 452
A21: 188 | B21: 2021-08-18 | I21: 1000 | J21: 1210 | K21: 750 | M21: 460
A22: 189 | B22: 2021-08-18 | I22: 3250 | J22: 3932.5 | K22: 800 | M22: 3132.5
A23: 190 | B23: 2021-08-18 | I23: 540 | J23: 653.4 | K23: 150 | M23: 503.4
A24: 191 | B24: 2021-08-18 | I24: 300 | J24: 363 | K24: 363 | L24: 2023-08-18 | M24: Payé
A264: 192 | B264: 2023-01-13 | C264: KOUSEN | D264: Daniel | E264: rue Buisson à la fleur, 91 | F264: 4537 | G264: Verlaine | H264: 0495/23.05.74 | I264: 395 | J264: 477.95 | K264: 0
A265: 192 | B265: 2023-01-13 | C265: KOUSEN | D265: Daniel | E265: rue Buisson à la fleur, 91 | F265: 4537 | G265: Verlaine | H265: 0495/23.05.74 | I265: 395 | J265: 477.95 | K265: 0
A266: 192 | B266: 2023-01-13 | C266: KOUSEN | D266: Daniel | E266: rue Buisson à la fleur, 91 | F266: 4537 | G266: Verlaine | H266: 0495/23.05.74 | I266: 395 | J266: 477.95 | K266: 0
A267: 192 | B267: 2023-01-13 | C267: KOUSEN | D267: Daniel | E267: rue Buisson à la fleur, 91 | F267: 4537 | G267: Verlaine | H267: 0495/23.05.74 | I267: 395 | J267: 477.95 | K267: 0
A268: 192 | B268: 2023-01-13 | C268: KOUSEN | D268: Daniel | E268: rue Buisson à la fleur, 91 | F268: 4537 | G268: Verlaine | H268: 0495/23.05.74 | I268: 395 | J268: 477.95 | K268: 0
A269: 192 | B269: 2023-01-13 | C269: LHOMME | D269: Alain | E269: rue Basse Marquet, 126 | F269: 4470 | G269: Stockay | H269: 0475/50 13 12 | I269: 395 | J269: 477.95 | K269: 0

Sheet JournaldesVentes
B2: FACTURIER DES VENTES | E2: Total facture + | G2: Trimestre 1 | I2: NET de TVA | M2: BE0651.346.584 | P2: Total de Contrôle
E3: ou Note e Crédit - | G3: Total TVA | H3: Total sans TVA | I3: 0.06 | J3: 0.21 | K3: Co-Contractant | L3: Privé | M3: TVA non due | N3: TVA à payer
E4: avec TVA % | F4: 0
B5: Date | C5: N° | D5: Clients | F5: 6
A6: Date | F6: 21 | I6: 1 | J6: 3 | K6: 45 | N6: 54
F7: 21 | G7: =E7-H7 -> 0 | H7: =IF(F7=0,E7,IF(F7=6,(E7/1.06),(E7/1.21))) -> 0 | I7: =IF(F7=6,H7,"") ->  | J7: =IF(F7=21,H7,"") -> 0 | N7: =G7-M7 -> 0 | P7: =SUM(I7:N7) -> 0
A8: 2021-07-12 | B8: 2021-07-12 | C8: 182 | D8: CONING Patrick | F8: =IF(E8="","",21) ->  | G8: =IF(E8="","",E8-H8) ->  | H8: =IF(E8="","",IF(F8=0,E8,IF(F8=6,(E8/1.06),(E8/1.21)))) ->  | I8: =IF(F8=6,H8,"") ->  | J8: =IF(F8=21,H8,"") ->  | N8: =IF(G8="","",G8-M8) ->  | P8: =IF(E8="","",SUM(I8:N8)) -> 
A9: 2021-07-12 | B9: 2021-07-12 | C9: 183 | D9: WOLWERTZ Alain | E9: 822.56 | F9: =IF(E9="","",21) -> 21 | G9: =IF(E9="","",E9-H9) -> 142.7583471 | H9: =IF(E9="","",IF(F9=0,E9,IF(F9=6,(E9/1.06),(E9/1.21)))) -> 679.8016529 | I9: =IF(F9=6,H9,"") ->  | J9: =IF(F9=21,H9,"") -> 679.8016529 | N9: =IF(G9="","",G9-M9) -> 142.7583471 | P9: =IF(E9="","",SUM(I9:N9)) -> 822.56
A10: 2021-07-12 | B10: 2021-07-12 | C10: 184 | D10: KOUSEN Daniel | E10: 376.31 | F10: 21 | G10: 65.31 | H10: 311 | J10: 311 | N10: 65.31 | P10: 376.31
A11: 2021-07-12 | B11: 2021-07-12 | C11: 185 | D11: LHOMME Alain | E11: 719.95 | F11: 21 | G11: 124.95 | H11: 595 | J11: 595 | N11: 124.95 | P11: 719.95
A12: 2021-08-18 | B12: 2021-08-18 | C12: 186 | D12: KOUSEN Daniel | E12: 943.8 | F12: 21 | G12: 163.8 | H12: 780 | J12: 780 | N12: 163.8 | P12: 943.8
A13: 2021-08-18 | B13: 2021-08-18 | C13: 187 | E13: 1452 | F13: 21 | G13: 252 | H13: 1200 | J13: 1200 | N13: 252 | P13: 1452
A14: 2021-08-18 | B14: 2021-08-18 | C14: 188 | E14: 1210 | F14: 21 | G14: 210 | H14: 1000 | J14: 1000 | N14: 210 | P14: 1210
A15: 2021-08-18 | B15: 2021-08-18 | C15: 189 | E15: 3932.5 | F15: 21 | G15: 682.5 | H15: 3250 | J15: 3250 | N15: 682.5 | P15: 3932.5
A16: 2021-08-18 | B16: 2021-08-18 | C16: 190 | E16: 653.4 | F16: 21 | G16: 113.4 | H16: 540 | J16: 540 | N16: 113.4 | P16: 653.4
A17: 2021-08-18 | B17: 2021-08-18 | C17: 191 | E17: 363 | F17: 21 | G17: 63 | H17: 300 | J17: 300 | N17: 63 | P17: 363
A18: 2023-01-13 | B18: 2023-01-13 | C18: 192 | D18: KOUSEN Daniel | E18: 477.95 | F18: 21 | G18: 82.95 | H18: 395 | J18: 395 | N18: 82.95 | P18: 477.95
A19: 2023-01-13 | B19: 2023-01-13 | C19: 192 | D19: KOUSEN Daniel | E19: 477.95 | F19: 21 | G19: 82.95 | H19: 395 | J19: 395 | N19: 82.95 | P19: 477.95
A20: 2023-01-13 | B20: 2023-01-13 | C20: 192 | D20: KOUSEN Daniel | E20: 477.95 | F20: 21 | G20: 82.95 | H20: 395 | J20: 395 | N20: 82.95 | P20: 477.95
A21: 2023-01-13 | B21: 2023-01-13 | C21: 192 | D21: KOUSEN Daniel | E21: 477.95 | F21: 21 | G21: 82.95 | H21: 395 | J21: 395 | N21: 82.95 | P21: 477.95
A22: 2023-01-13 | B22: 2023-01-13 | C22: 192 | D22: KOUSEN Daniel | E22: 477.95 | F22: 21 | G22: 82.95 | H22: 395 | J22: 395 | N22: 82.95 | P22: 477.95
A23: 2023-01-13 | B23: 2023-01-13 | C23: 192 | D23: LHOMME Alain | E23: 477.95 | F23: 21 | G23: 82.95 | H23: 395 | J23: 395 | N23: 82.95 | P23: 477.95
